bitfinex-derivatives/quotes_BTCF0:USTF0_20250505
["timestamp","ask_amount","ask_price","bid_price","bid_amount"]
[1746470642109,0.001,94896.0,94895.0,0.85792299]
[1746470642405,0.001,94896.0,94895.0,0.86092299]
[1746470659111,0.0005,94905.0,94904.0,0.00626626]
[1746470659315,0.0005,94905.0,94904.0,0.64499706]
[1746470659913,0.0005,94905.0,94904.0,2.14499706]
[1746470660113,0.2411765,94927.0,94912.0,0.2107531]
[1746470660414,0.2014,94925.0,94912.0,0.57781936]
[1746470661015,0.2411765,94927.0,94925.0,0.2107242]
[1746470661219,0.2411765,94927.0,94925.0,0.33699046]
[1746470661812,0.133,94926.0,94925.0,0.33699046]
[1746470662006,0.136,94926.0,94925.0,0.40819046]
[1746470662511,0.35134638,94926.0,94925.0,0.40819046]
[1746470662903,0.35434638,94926.0,94925.0,0.40819046]
[1746470663114,0.35434638,94926.0,94925.0,0.28819046]
[1746470665609,0.35434638,94926.0,94924.0,0.06716]
[1746470665814,0.0649,94925.0,94924.0,0.2107264]
[1746470666118,0.2107508,94913.0,94904.0,0.3608]
[1746470666309,0.21534638,94913.0,94912.0,0.2779131]
[1746470666620,0.21534638,94913.0,94912.0,0.2107531]
[1746470667016,0.35714638,94913.0,94912.0,0.2107531]
[1746470668312,0.35814638,94913.0,94912.0,0.2107531]
[1746470669509,0.35814638,94913.0,94910.0,0.0716]
[1746470669713,0.1428,94913.0,94912.0,0.2107531]
[1746470670119,0.35814638,94913.0,94912.0,0.2107531]
[1746470670422,0.56889718,94913.0,94912.0,0.2107531]
[1746470670717,0.56789718,94913.0,94912.0,0.2107531]
[1746470671913,0.2107597,94909.0,94908.0,0.06716]
[1746470672114,0.42610608,94909.0,94908.0,0.277922]
[1746470672919,0.21534638,94909.0,94908.0,0.277922]
[1746470673220,0.34904638,94909.0,94908.0,0.278922]
[1746470673823,0.34904638,94909.0,94908.0,0.277922]
[1746470674426,0.34904638,94909.0,94908.0,0.278922]
[1746470674725,0.34904638,94909.0,94908.0,0.211762]
[1746470675722,0.34904638,94909.0,94908.0,0.212762]
[1746470676021,0.34904638,94909.0,94908.0,0.211762]
[1746470676223,0.34904638,94909.0,94908.0,0.212762]
[1746470676819,0.55980608,94909.0,94908.0,0.002]
[1746470677015,0.34904638,94909.0,94908.0,0.212762]
[1746470680321,0.34904638,94909.0,94908.0,0.211762]
[1746470680817,0.34904638,94909.0,94908.0,0.212762]
[1746470682021,0.34904638,94909.0,94908.0,0.284662]
[1746470682221,0.34904638,94909.0,94908.0,0.0739]
[1746470682415,0.55980608,94909.0,94908.0,0.002]
[1746470682614,0.55980608,94909.0,94908.0,0.212762]
[1746470683025,0.55980608,94909.0,94908.0,0.211762]
[1746470683323,0.55980608,94909.0,94908.0,0.212762]
[1746470683819,0.55980608,94909.0,94908.0,0.283662]
[1746470684124,0.34904638,94909.0,94908.0,0.283662]
[1746470684515,0.55980608,94909.0,94908.0,0.282662]
[1746470687024,0.34904638,94909.0,94908.0,0.282662]
[1746470687223,0.35004638,94909.0,94908.0,0.282662]
[1746470687724,0.34904638,94909.0,94908.0,0.282662]
[1746470688226,0.55980608,94909.0,94908.0,0.282662]
[1746470689920,0.56080608,94909.0,94908.0,0.282662]
[1746470692624,0.3454597,94909.0,94908.0,0.282662]
[1746470692824,0.56080608,94909.0,94908.0,0.282662]
[1746470693030,0.56080608,94909.0,94908.0,0.287662]
[1746470693328,0.56080608,94909.0,94908.0,0.0769]
[1746470694229,0.56080608,94909.0,94908.0,0.287662]
[1746470694829,0.56080608,94909.0,94908.0,0.0769]
[1746470695234,0.42710608,94909.0,94908.0,0.0769]
[1746470695528,0.42710608,94909.0,94908.0,0.287662]
[1746470697934,0.42710608,94909.0,94908.0,0.0769]
[1746470698231,0.42710608,94909.0,94908.0,0.287662]
[1746470700531,0.2117597,94909.0,94908.0,0.0769]
[1746470700732,0.42710608,94909.0,94908.0,0.0769]
[1746470701936,0.42710608,94909.0,94908.0,0.287662]
[1746470702134,0.21634638,94909.0,94908.0,0.287662]
[1746470705338,0.001,94909.0,94908.0,0.287662]
[1746470705637,0.001,94909.0,94908.0,0.29392826]
[1746470706135,0.001,94909.0,94908.0,0.41392826]
[1746470707229,0.001,94909.0,94908.0,0.41492826]
[1746470707837,0.3608,94912.0,94911.0,0.2107553]
[1746470708031,0.3608,94912.0,94911.0,0.21702156]
[1746470708231,0.3608,94912.0,94911.0,0.2107553]
[1746470708937,0.3608,94912.0,94911.0,0.21702156]
[1746470709126,0.3608,94912.0,94911.0,0.33702156]
[1746470710138,0.001,94926.0,94911.0,0.33702156]
[1746470710139,0.001,94926.0,94916.0,0.0526858]
[1746470710338,0.001,94926.0,94925.0,0.21699046]
[1746470712333,0.003,94926.0,94925.0,0.21699046]
[1746470712934,0.003,94926.0,94925.0,0.35289046]
[1746470713134,0.005,94926.0,94925.0,0.47289046]
[1746470726351,0.005,94926.0,94925.0,0.40369046]
[1746470726948,0.1417,94926.0,94925.0,0.40369046]
[1746470731860,0.352422,94926.0,94925.0,0.40369046]
[1746470732258,0.1417,94926.0,94925.0,0.40369046]
[1746470732754,0.35704638,94926.0,94925.0,0.40369046]
[1746470743072,0.35504638,94926.0,94925.0,0.40469046]
[1746470743469,0.35504638,94926.0,94925.0,0.19396626]
[1746470743671,0.56576838,94926.0,94925.0,0.40469046]
[1746470743969,1.02991238,94926.0,94925.0,0.121]
[1746470744169,1.14991238,94926.0,94925.0,0.002]
[1746470744576,1.14991238,94926.0,94925.0,0.001]
[1746470745278,0.2107286,94923.0,94922.0,0.2774309]
[1746470745764,0.42607498,94923.0,94922.0,0.2774309]
[1746470745973,0.42607498,94923.0,94922.0,0.0667]
[1746470746275,0.49707498,94923.0,94922.0,0.2774309]
[1746470746475,0.49807498,94923.0,94922.0,0.2107309]
[1746470747678,0.49907498,94923.0,94922.0,0.2107309]
[1746470747880,0.49807498,94923.0,94922.0,0.2107309]
[1746470748176,0.49907498,94923.0,94922.0,0.2107309]
[1746470751482,0.2107309,94922.0,94921.0,0.0702]
[1746470751778,0.49337728,94922.0,94921.0,0.0702]
[1746470752074,0.55927728,94922.0,94921.0,0.0702]
[1746470752670,0.56127728,94922.0,94921.0,0.0702]
[1746470755980,0.2107486,94914.0,94913.0,0.2107496]
[1746470756177,0.5715486,94914.0,94913.0,0.2107496]
[1746470756381,0.5715486,94914.0,94913.0,0.21701586]
[1746470756774,0.263449,94911.0,94910.0,0.2107569]
[1746470757285,0.401949,94911.0,94910.0,0.21702316]
[1746470757968,0.401949,94911.0,94910.0,0.28302316]
[1746470758173,0.400949,94911.0,94910.0,0.28302316]
[1746470758775,0.400949,94911.0,94910.0,0.28402316]
[1746470759187,0.400949,94911.0,94910.0,0.28302316]
[1746470759375,0.400949,94911.0,94910.0,0.07226626]
[1746470760081,0.400949,94911.0,94910.0,0.07126626]
[1746470760687,0.401949,94911.0,94910.0,0.07126626]
[1746470761081,0.402949,94911.0,94910.0,0.07126626]
[1746470762276,0.002,94911.0,94910.0,0.28202376]
[1746470762981,0.2127553,94911.0,94910.0,0.28202376]
[1746470763187,0.2127553,94911.0,94910.0,0.19126626]
[1746470763387,0.2127553,94911.0,94910.0,0.40202376]
[1746470765279,0.002,94911.0,94910.0,0.40202376]
[1746470765882,0.001,94911.0,94910.0,0.40202376]
[1746470766085,0.002,94911.0,94910.0,0.40202376]
[1746470771591,0.001,94911.0,94910.0,0.40402376]
[1746470771990,0.001,94911.0,94910.0,0.40202376]
[1746470772182,0.001,94911.0,94910.0,0.40502376]
[1746470772685,0.001,94911.0,94910.0,0.40602376]
[1746470773091,0.1266666,94920.0,94919.0,0.2107375]
[1746470773392,0.3618,94926.0,94925.0,0.2107242]
[1746470773795,0.57714638,94926.0,94925.0,0.2107242]
[1746470774191,0.57714638,94926.0,94925.0,0.3513242]
[1746470775892,0.57814638,94926.0,94925.0,0.3513242]
[1746470777395,0.57714638,94926.0,94925.0,0.3513242]
[1746470778493,0.64754638,94926.0,94925.0,0.3513242]
[1746470779093,0.64854638,94926.0,94925.0,0.3513242]
[1746470780892,0.64754638,94926.0,94925.0,0.3513242]
[1746470781602,0.85926838,94926.0,94925.0,0.3513242]
[1746470783804,0.92876838,94926.0,94925.0,0.3513242]
[1746470784506,0.92776838,94926.0,94925.0,0.3513242]
[1746470784803,0.92876838,94926.0,94925.0,0.3513242]
[1746470786507,0.71804638,94926.0,94925.0,0.3513242]
[1746470786704,0.92876838,94926.0,94925.0,0.3513242]
[1746470786901,0.71804638,94926.0,94925.0,0.3513242]
[1746470787506,0.3628,94926.0,94925.0,0.3513242]
[1746470787804,0.001,94926.0,94925.0,0.35759046]
[1746470788005,0.2416075,94937.0,94936.0,0.2106998]
[1746470788206,0.20478842,94937.0,94936.0,0.28360606]
[1746470788405,0.0015,94940.0,94939.0,0.2106931]
[1746470788605,0.0015,94940.0,94939.0,0.21695936]
[1746470789215,0.0015,94940.0,94939.0,0.33695936]
[1746470789407,0.0015,94940.0,94939.0,0.47205936]
[1746470791108,0.0015,94940.0,94939.0,0.48936342]
[1746470791909,0.0045,94940.0,94939.0,0.48936342]
[1746470792514,0.0015,94940.0,94939.0,0.48936342]
[1746470792714,0.0015,94940.0,94939.0,0.49036342]
[1746470793113,0.0015,94940.0,94939.0,0.37036342]
[1746470793507,0.0015,94940.0,94939.0,0.36936342]
[1746470793706,0.0015,94940.0,94939.0,0.37036342]
[1746470794120,0.0015,94940.0,94939.0,0.49036342]
[1746470794619,0.0015,94940.0,94939.0,0.48936342]
[1746470794814,0.0015,94940.0,94939.0,0.49036342]
[1746470795216,0.0015,94940.0,94939.0,0.48936342]
[1746470795617,0.0015,94940.0,94939.0,0.49036342]
[1746470797308,0.0015,94940.0,94939.0,0.48936342]
[1746470797607,0.0015,94940.0,94939.0,0.49036342]
[1746470798107,0.0015,94940.0,94939.0,0.37036342]
[1746470799706,0.0015,94940.0,94939.0,0.36936342]
[1746470799909,0.0015,94940.0,94939.0,0.37036342]
[1746470800219,0.0015,94940.0,94939.0,0.48936342]
[1746470801519,0.0015,94940.0,94939.0,0.48836342]
[1746470807620,0.0015,94940.0,94939.0,0.48936342]
[1746470809817,0.0015,94940.0,94939.0,0.48836342]
[1746470810024,0.0015,94940.0,94939.0,0.48936342]
[1746470810614,0.0015,94940.0,94939.0,0.49036342]
[1746470810816,0.0702,94940.0,94939.0,0.49036342]
[1746470813224,0.0702,94940.0,94939.0,0.48936342]
[1746470813419,0.0702,94940.0,94939.0,0.49036342]
[1746470813615,0.0702,94940.0,94939.0,0.55688342]
[1746470815333,0.0702,94940.0,94939.0,0.49068342]
[1746470815633,0.136,94940.0,94939.0,0.49068342]
[1746470816420,0.136,94940.0,94939.0,0.48968342]
[1746470816616,0.0015,94940.0,94939.0,0.48968342]
[1746470816818,0.0015,94940.0,94939.0,0.48868342]
[1746470817628,0.0015,94940.0,94939.0,0.48968342]
[1746470818031,0.0703,94940.0,94939.0,0.48968342]
[1746470818731,0.0703,94940.0,94939.0,0.49068342]
[1746470821437,0.0015,94940.0,94939.0,0.49068342]
[1746470829645,0.0015,94940.0,94939.0,0.27999032]
[1746470829946,0.2121909,94940.0,94939.0,0.27999032]
[1746470830832,0.2121909,94940.0,94932.0,0.2107082]
[1746470830833,1.06427839,94940.0,94913.0,0.36238032]
[1746470831034,0.570522,94926.0,94925.0,0.067]
[1746470831236,0.570522,94926.0,94925.0,0.187]
[1746470831445,0.78586838,94926.0,94925.0,0.12]
[1746470831950,0.92346838,94926.0,94925.0,0.12]
[1746470832643,0.92546838,94926.0,94925.0,0.12]
[1746470832842,0.92546838,94926.0,94925.0,0.1864]
[1746470833045,0.92546838,94926.0,94925.0,0.13542251]
[1746470833046,0.92746838,94926.0,94925.0,0.13542251]
[1746470833239,0.2107486,94914.0,94913.0,0.00158032]
[1746470833447,0.2107486,94914.0,94908.0,2e-08]
[1746470833448,0.42610608,94909.0,94908.0,2e-08]
[1746470833740,0.42613498,94896.0,94895.0,1e-08]
[1746470833946,0.78693498,94896.0,94895.0,1e-08]
[1746470834246,0.78693498,94896.0,94895.0,0.13516358]
[1746470834549,0.57614638,94896.0,94895.0,0.12000001]
[1746470834743,0.489,94896.0,94895.0,0.12000001]
[1746470834951,0.70434638,94896.0,94895.0,0.12000001]
[1746470835542,0.70234638,94896.0,94895.0,0.12000001]
[1746470835747,0.70234638,94896.0,94895.0,0.33079081]
[1746470836050,0.70234638,94896.0,94895.0,0.12000001]
[1746470836251,0.70234638,94896.0,94895.0,0.33179081]
[1746470836639,0.71043897,94896.0,94895.0,0.12100001]
[1746470836841,0.71043897,94896.0,94895.0,0.33179081]
[1746470838854,0.71043897,94896.0,94895.0,0.33079081]
[1746470839151,0.71043897,94896.0,94895.0,0.12000001]
[1746470839453,0.71043897,94896.0,94895.0,0.33079081]
[1746470840442,0.71143897,94896.0,94895.0,0.33079081]
[1746470840750,0.71143897,94896.0,94895.0,0.33179081]
[1746470841654,0.71143897,94896.0,94895.0,0.33079081]
[1746470841841,0.1292,94896.0,94895.0,0.33805707]
[1746470842051,0.413487,94915.0,94907.0,0.2107642]
[1746470842354,0.210754,94912.0,94907.0,0.2107642]
[1746470842540,0.28074638,94908.0,94907.0,0.2107642]
[1746470842745,0.28074638,94908.0,94905.0,0.2107678]
[1746470842944,0.21534638,94906.0,94905.0,0.2107678]
[1746470843148,0.21534638,94906.0,94905.0,0.3307678]
[1746470843354,0.28034638,94906.0,94905.0,0.3307678]
[1746470844255,0.28836404,94906.0,94905.0,0.3307678]
[1746470844557,0.29036404,94906.0,94905.0,0.3307678]
[1746470845939,0.29136404,94906.0,94905.0,0.3307678]
[1746470847561,0.21834638,94906.0,94905.0,0.3307678]
[1746470847857,0.1929253,94930.0,94906.0,0.0526914]
[1746470848157,0.21534638,94916.0,94915.0,0.21701266]
[1746470848356,0.21534638,94916.0,94915.0,0.35381266]
[1746470848553,0.131,94926.0,94915.0,0.14306626]
[1746470848749,0.131,94926.0,94921.0,0.0526832]
[1746470849050,0.131,94926.0,94925.0,0.2107242]
[1746470849257,0.131,94926.0,94923.0,0.2634088]
[1746470849457,0.131,94926.0,94924.0,0.2795255]
[1746470849855,0.21534638,94925.0,94924.0,0.2795255]
[1746470850249,0.34904638,94925.0,94924.0,0.3995255]
[1746470852051,0.35204638,94925.0,94924.0,0.3995255]
[1746470852250,0.35604638,94925.0,94924.0,0.3995255]
[1746470854656,0.35604638,94925.0,94924.0,0.1888]
[1746470855062,0.35604638,94925.0,94924.0,0.3995264]
[1746470856059,0.35604638,94925.0,94924.0,0.1888]
[1746470856265,0.35604638,94925.0,94924.0,0.3995264]
[1746470858365,0.007,94925.0,94924.0,0.40579266]
[1746470859057,0.007,94925.0,94924.0,1.90579266]
[1746470862663,0.43307058,94925.0,94924.0,0.25512]
[1746470862869,0.22234638,94925.0,94924.0,0.25512]
[1746470863565,0.35514638,94925.0,94924.0,0.25712]
[1746470864763,0.35514638,94925.0,94924.0,0.25612]
[1746470865068,0.21534638,94925.0,94924.0,0.4688464]
[1746470865463,0.21534638,94925.0,94924.0,0.4668464]
[1746470865660,0.21534638,94925.0,94924.0,0.4678464]
[1746470869265,0.18740253,94934.0,94924.0,0.26338626]
[1746470869461,0.18740253,94934.0,94933.0,0.2107064]
[1746470869857,0.40274891,94934.0,94933.0,0.2107064]
[1746470870263,0.40274891,94934.0,94933.0,0.3307064]
[1746470871261,0.40374891,94934.0,94933.0,0.3307064]
[1746470871467,0.001,94934.0,94933.0,0.33697266]
[1746470871776,0.001,94934.0,94933.0,0.40437266]
[1746470871977,0.001,94934.0,94933.0,0.19366626]
[1746470872675,0.002,94934.0,94933.0,0.19366626]
[1746470875371,0.002,94934.0,94933.0,0.40437266]
[1746470878877,0.001,94934.0,94933.0,0.40537266]
[1746470880574,0.3608,94938.0,94937.0,0.2106976]
[1746470880780,0.3608,94938.0,94937.0,0.21696386]
[1746470881178,0.0015,94940.0,94939.0,0.2106931]
[1746470881478,0.0015,94940.0,94939.0,0.21695936]
[1746470882069,0.0015,94940.0,94939.0,0.33695936]
[1746470882672,0.0025,94940.0,94939.0,0.33695936]
[1746470883182,0.0035,94940.0,94939.0,0.33695936]
[1746470900689,0.0035,94940.0,94939.0,0.40319936]
[1746470900885,0.0035,94940.0,94939.0,0.19250626]
[1746470901086,0.21884638,94940.0,94939.0,0.07250626]
[1746470901288,0.21884638,94940.0,94939.0,0.28319936]
[1746470902093,0.21884638,94940.0,94939.0,0.40319936]
[1746470903295,0.21884638,94940.0,94939.0,0.28319936]
[1746470904085,0.21884638,94940.0,94939.0,0.40319936]
[1746470911897,0.42953728,94940.0,94939.0,0.12]
[1746470912700,0.55033728,94940.0,94939.0,0.12]
[1746470913301,0.55033728,94940.0,94936.0,0.3608]
[1746470913302,0.2106976,94937.0,94936.0,0.3608]
[1746470913498,0.42604398,94937.0,94936.0,0.3608]
[1746470913699,0.53137599,94937.0,94936.0,0.3608]
[1746470913998,0.2107179,94931.0,94930.0,0.2107128]
[1746470914207,0.26802788,94925.0,94909.0,0.06624]
[1746470914503,0.42608388,94919.0,94918.0,0.5715397]
[1746470914699,0.42608388,94919.0,94918.0,0.59669873]
[1746470915202,0.21534638,94919.0,94918.0,0.59669873]
[1746470915500,0.27514638,94919.0,94918.0,0.59669873]
[1746470915691,0.33394638,94919.0,94918.0,0.59669873]
[1746470915888,0.54468388,94919.0,94918.0,0.59669873]
[1746470916690,0.54468388,94919.0,94918.0,0.60069873]
[1746470917405,0.54468388,94919.0,94918.0,0.23589873]
[1746470917595,0.54468388,94919.0,94918.0,0.02515903]
[1746470917791,0.2107397,94918.0,94917.0,0.062]
[1746470918104,0.21534638,94918.0,94907.0,0.4134909]
[1746470918307,0.21534638,94912.0,94911.0,0.33091036]
[1746470918607,0.21534638,94912.0,94911.0,0.35597491]
[1746470918799,0.42609948,94912.0,94911.0,0.35597491]
[1746470918997,0.78689948,94912.0,94911.0,0.35597491]
[1746470919199,0.69684638,94912.0,94911.0,0.47597491]
[1746470919405,0.90759948,94912.0,94911.0,0.21253081]
[1746470919805,0.90759948,94912.0,94911.0,0.21353081]
[1746470919998,0.69684638,94912.0,94911.0,0.42428611]
[1746470920199,0.90759948,94912.0,94911.0,0.21353081]
[1746470920401,0.90759948,94912.0,94911.0,0.21253081]
[1746470921703,0.90759948,94912.0,94911.0,0.20626455]
[1746470922196,0.90759948,94912.0,94911.0,0.08626455]
[1746470922802,0.90859948,94912.0,94911.0,0.08626455]
[1746470923797,0.90959948,94912.0,94911.0,0.29701985]
[1746470924701,0.6942531,94912.0,94911.0,0.29701985]
[1746470925002,0.85009948,94912.0,94911.0,0.08626455]
[1746470925201,0.91009948,94912.0,94911.0,0.41701985]
[1746470925402,0.21734638,94912.0,94911.0,0.41701985]
[1746470925705,0.21734638,94912.0,94911.0,0.42328611]
[1746470925906,0.42709948,94912.0,94911.0,0.48218611]
[1746470926209,0.21734638,94912.0,94911.0,0.48218611]
[1746470927801,0.27964638,94912.0,94911.0,0.48218611]
[1746470929101,0.21734638,94912.0,94911.0,0.48218611]
[1746470930510,0.002,94912.0,94911.0,0.48218611]
[1746470941718,0.0526739,94938.0,94924.0,0.2107264]
[1746470942020,0.0526756,94935.0,94932.0,0.2633799]
[1746470942317,0.2107073,94933.0,94932.0,0.2633799]
[1746470942518,0.42605368,94933.0,94932.0,0.2633799]
[1746470943121,0.33904638,94933.0,94932.0,0.3833799]
[1746470943417,0.34404638,94933.0,94932.0,0.3833799]
[1746470943712,0.28154638,94933.0,94932.0,0.3833799]
[1746470944112,0.28554638,94933.0,94932.0,0.3833799]
[1746470944419,0.22434638,94933.0,94932.0,0.3833799]
[1746470944720,0.22434638,94933.0,94932.0,0.38964616]
[1746470945720,0.22434638,94933.0,94932.0,0.33696926]
[1746470945925,0.43505278,94933.0,94932.0,0.12626626]
[1746470946217,0.55775278,94933.0,94932.0,0.12626626]
[1746470946715,0.55775278,94933.0,94932.0,0.33697496]
[1746470946919,0.34704638,94933.0,94932.0,0.33697496]
[1746470947309,0.34304638,94933.0,94932.0,0.33697496]
[1746470947615,0.34704638,94933.0,94932.0,0.33697496]
[1746470947817,0.28504638,94933.0,94932.0,0.33697496]
[1746470948113,0.22034638,94933.0,94932.0,0.33797496]
[1746470948311,0.43103788,94933.0,94932.0,0.33797496]
[1746470948809,0.22034638,94933.0,94932.0,0.33797496]
[1746470949116,0.22034638,94933.0,94932.0,0.69877496]
[1746470949316,0.21934638,94933.0,94932.0,0.69877496]
[1746470950415,0.21534638,94933.0,94932.0,0.69877496]
[1746470950616,0.21534638,94933.0,94932.0,0.69977496]
[1746470950817,0.2106852,94934.0,94933.0,0.2106854]
[1746470951111,0.2106807,94936.0,94935.0,0.2106809]
[1746470951317,0.2106807,94936.0,94935.0,0.21694716]
[1746470952116,0.2106807,94936.0,94935.0,0.33694716]
[1746470952318,0.2713752,94938.0,94936.0,0.2106783]
[1746470952505,0.27564638,94937.0,94936.0,0.2106783]
[1746470952912,0.27564638,94937.0,94936.0,0.27644456]
[1746470953113,0.27564638,94937.0,94936.0,0.39644456]
[1746470954015,0.21534638,94937.0,94936.0,0.39644456]
[1746470954913,0.27574638,94937.0,94936.0,0.39644456]
[1746470955413,0.21534638,94937.0,94936.0,0.39644456]
[1746470958424,0.42602288,94937.0,94936.0,0.39644456]
[1746470958627,0.54362288,94937.0,94936.0,0.39644456]
[1746470962430,0.54362288,94937.0,94936.0,0.12]
[1746470962617,0.3282765,94937.0,94936.0,0.3306787]
[1746470962815,0.54362288,94937.0,94936.0,0.3306787]
[1746470970330,0.54362288,94937.0,94936.0,0.12]
[1746470970531,0.54362288,94937.0,94936.0,0.3306787]
[1746470970934,0.54362288,94937.0,94936.0,0.12]
[1746470971631,0.54362288,94937.0,94936.0,0.3306787]
[1746470973325,0.54362288,94937.0,94936.0,0.12]
[1746470974232,0.210692,94930.0,94929.0,0.0609]
[1746470974436,0.78683838,94930.0,94929.0,0.0609]
[1746470975135,0.90453838,94930.0,94929.0,0.1809]
[1746470977728,0.90553838,94930.0,94929.0,0.1809]
[1746470978738,0.90453838,94930.0,94929.0,0.1809]
[1746470978941,0.90553838,94930.0,94929.0,0.1809]
[1746470979326,0.90553838,94930.0,94929.0,0.12]
[1746470980140,0.210712,94921.0,94920.0,0.0571]
[1746470980343,0.78685838,94921.0,94920.0,0.0571]
[1746470981038,0.90375838,94921.0,94920.0,0.0571]
[1746470981438,0.90475838,94921.0,94920.0,0.0571]
[1746470981936,0.90375838,94921.0,94920.0,0.0571]
[1746470982239,0.90575838,94921.0,94920.0,0.1771]
[1746470982742,0.90475838,94921.0,94920.0,0.1771]
[1746470982942,0.90575838,94921.0,94920.0,0.1771]
[1746470983436,0.90475838,94921.0,94920.0,0.1771]
[1746470983636,0.90575838,94921.0,94920.0,0.1771]
[1746470990647,0.54495838,94921.0,94920.0,0.1771]
[1746470990947,0.90575838,94921.0,94920.0,0.1771]
[1746471001243,0.90575838,94921.0,94920.0,0.0571]
[1746471003052,0.54495838,94921.0,94920.0,0.0571]
[1746471003253,0.90575838,94921.0,94920.0,0.0571]
[1746471003846,0.90575838,94921.0,94912.0,0.0568]
[1746471003847,0.2107298,94913.0,94912.0,0.0568]
[1746471004046,0.78687618,94913.0,94912.0,0.0568]
[1746471004754,0.90687618,94913.0,94912.0,0.0568]
[1746471004945,0.90687618,94913.0,94912.0,0.0578]
[1746471005146,0.90687618,94913.0,94912.0,0.1778]
[1746471006454,0.90687618,94913.0,94912.0,0.1768]
[1746471006657,0.90887618,94913.0,94912.0,0.1768]
[1746471007458,0.90787618,94913.0,94912.0,0.1768]
[1746471007650,0.90887618,94913.0,94912.0,0.1768]
[1746471007958,0.90787618,94913.0,94912.0,0.1768]
[1746471008158,0.90887618,94913.0,94912.0,0.1768]
[1746471008451,0.90887618,94913.0,94912.0,0.12]
[1746471010360,0.90787618,94913.0,94912.0,0.12]
[1746471010559,0.90887618,94913.0,94912.0,0.12]
[1746471016267,0.90787618,94913.0,94912.0,0.12]
[1746471016464,0.90887618,94913.0,94912.0,0.12]
[1746471026673,0.90887618,94913.0,94912.0,0.1807]
[1746471028475,0.2107475,94905.0,94904.0,0.058]
[1746471028677,0.2107609,94899.0,94898.0,0.059]
[1746471029074,0.2107609,94899.0,94898.0,0.18526626]
[1746471029472,0.2107609,94899.0,94898.0,0.24396626]
[1746471029781,0.2097609,94899.0,94898.0,0.24396626]
[1746471030084,0.2097609,94899.0,94898.0,0.24596626]
[1746471030481,0.0526932,94894.0,94870.0,0.3608]
[1746471030683,0.78693168,94888.0,94879.0,0.1172]
[1746471031178,0.78693168,94888.0,94887.0,0.12158082]
[1746471031375,0.78493168,94888.0,94887.0,0.12158082]
[1746471031684,0.89973168,94888.0,94887.0,0.12158082]
[1746471032172,0.90073168,94888.0,94887.0,0.12158082]
[1746471032573,0.90173168,94888.0,94887.0,0.12158082]
[1746471033078,1.00711968,94888.0,94887.0,0.12158082]
[1746471033875,1.00711968,94888.0,94887.0,0.08522172]
[1746471034188,0.0526992,94883.0,94874.0,0.0566]
[1746471034382,0.5716142,94875.0,94874.0,0.0566]
[1746471034774,0.5716142,94875.0,94874.0,0.06286626]
[1746471035081,0.78696058,94875.0,94874.0,0.12]
[1746471035282,0.2108275,94869.0,94868.0,0.0596]
[1746471035577,0.78697388,94869.0,94868.0,0.1164]
[1746471036184,0.90637388,94869.0,94868.0,0.2364]
[1746471036775,0.2118275,94869.0,94868.0,0.45349596]
[1746471037885,0.2128275,94869.0,94868.0,0.45349596]
[1746471038597,0.2118275,94869.0,94868.0,0.45349596]
[1746471038779,0.2108275,94869.0,94868.0,0.45349596]
[1746471039385,0.2108275,94869.0,94868.0,0.24266626]
[1746471039586,0.5716275,94869.0,94868.0,0.24266626]
[1746471040581,0.6302275,94869.0,94868.0,0.24266626]
[1746471041386,0.84557388,94869.0,94868.0,0.12]
[1746471041587,0.90767388,94869.0,94868.0,0.12]
[1746471041978,0.90767388,94869.0,94859.0,0.0527121]
[1746471041979,0.2108609,94854.0,94853.0,0.03531889]
[1746471042179,0.2108631,94853.0,94850.0,0.2108679]
[1746471042382,0.48500948,94853.0,94851.0,0.0568]
[1746471042780,0.48500948,94853.0,94852.0,0.0377649]
[1746471042974,0.48500948,94853.0,94852.0,0.0015814]
[1746471043178,0.48500948,94853.0,94852.0,0.1225814]
[1746471045388,0.48500948,94853.0,94852.0,0.1235814]
[1746471045780,0.48500948,94853.0,94852.0,0.1596419]
[1746471047389,0.48500948,94853.0,94852.0,0.1235814]
[1746471047583,0.48500948,94853.0,94852.0,0.0682001]
[1746471047784,0.2108986,94837.0,94836.0,0.1227]
[1746471047984,0.5716986,94837.0,94836.0,0.3336009]
[1746471048181,0.5716986,94837.0,94836.0,0.45986716]
[1746471048991,0.5716986,94837.0,94836.0,0.24896626]
[1746471049689,0.5716986,94837.0,94836.0,0.45986716]
[1746471049989,0.5716986,94837.0,94836.0,0.24896626]
[1746471050590,0.57942098,94837.0,94836.0,0.24896626]
[1746471051983,0.64112098,94837.0,94836.0,0.24896626]
[1746471052578,0.85646736,94837.0,94836.0,0.1812]
[1746471052785,0.85646736,94837.0,94836.0,0.2417]
[1746471052992,0.28032098,94837.0,94836.0,0.31016626]
[1746471053394,0.28032098,94837.0,94836.0,0.52106716]
[1746471056194,0.21962098,94837.0,94836.0,0.52106716]
[1746471056984,0.00872238,94837.0,94836.0,0.52106716]
[1746471059089,0.001,94837.0,94836.0,0.52106716]
[1746471059290,0.4135145,94856.0,94836.0,0.41561026]
[1746471059291,0.2108689,94852.0,94836.0,0.41561026]
[1746471059488,0.4135142,94856.0,94850.0,0.2108697]
[1746471059489,0.2703687,94851.0,94850.0,0.2108697]
[1746471059888,0.2703687,94851.0,94850.0,0.21713596]
[1746471060097,0.0595,94851.0,94850.0,0.45443596]
[1746471060299,0.2703675,94851.0,94850.0,0.45443596]
[1746471061699,0.27836465,94851.0,94850.0,0.45443596]
[1746471061901,0.06949715,94851.0,94850.0,0.45443596]
[1746471062090,0.28036465,94851.0,94850.0,0.45443596]
[1746471062286,0.07249715,94851.0,94850.0,0.45443596]
[1746471062794,0.07049715,94851.0,94850.0,0.45443596]
[1746471063000,0.06849715,94851.0,94850.0,0.45543596]
[1746471063199,0.27936465,94851.0,94850.0,0.45543596]
[1746471063503,0.06849715,94851.0,94850.0,0.45543596]
[1746471064495,0.06749715,94851.0,94850.0,0.45643596]
[1746471066307,0.27836465,94851.0,94850.0,0.45643596]
[1746471066508,0.06749715,94851.0,94850.0,0.45643596]
[1746471066900,0.27836465,94851.0,94850.0,0.45643596]
[1746471068612,0.27836465,94851.0,94850.0,0.24556626]
[1746471068811,0.27836465,94851.0,94850.0,0.45643596]
[1746471070913,0.06749715,94851.0,94850.0,0.45643596]
[1746471071715,0.06749715,94851.0,94850.0,0.45543596]
[1746471072013,0.06749715,94851.0,94850.0,0.45643596]
[1746471074420,0.27836465,94851.0,94850.0,0.45643596]
[1746471074816,0.06749715,94851.0,94850.0,0.45643596]
[1746471075719,0.00799715,94851.0,94850.0,0.45643596]
[1746471075919,0.0625,94854.0,94853.0,0.2108631]
[1746471076414,0.0625,94854.0,94853.0,0.21712936]